Department Family,Entity,Date,Expense Type,Expense Area,Supplier,Amount in sterling
Companies House,CH,05/12/2022,Adjudicator General,Edinburgh,WALKER LOVE,"11,725.97 "
Companies House,CH,08/12/2022,CHD Invoice Printing,Accounting,PARAGON CUSTOMER COMMUNICATIONS (LONDON),539.33 
Companies House,CH,19/12/2022,Circuit Rental,Infrastructure,AdEPT Telecom PLC,"3,918.07 "
Companies House,CH,19/12/2022,Circuit Rental,Infrastructure,HIGHSPEED OFFICE LTD,"18,939 "
Companies House,CH,08/12/2022,Cloud Services,Infrastructure Engineering,Amazon Web Services,"(43,474.34)"
Companies House,CH,08/12/2022,Cloud Services,Infrastructure Engineering,Amazon Web Services,706.61 
Companies House,CH,08/12/2022,Cloud Services,Infrastructure Engineering,Amazon Web Services,"3,338.35 "
Companies House,CH,08/12/2022,Cloud Services,Infrastructure Engineering,Amazon Web Services,"17,114.74 "
Companies House,CH,08/12/2022,Cloud Services,Infrastructure Engineering,Amazon Web Services,"197,610.77 "
Companies House,CH,01/12/2022,Consultants Management,Building Services,British Standards Institute,"2,372 "
Companies House,CH,19/12/2022,Consultants Management,Portfolio,DELOITTE LLP LIMITED,"78,540 "
Companies House,CH,15/12/2022,Consultants Management,Portfolio,DELOITTE LLP LIMITED,"185,233 "
Companies House,CH,12/12/2022,Contact Centre,CDD Cardiff,Arvato Limited,"10,000 "
Companies House,CH,08/12/2022,Contact Centre,CDD Cardiff,Arvato Limited,"23,982 "
Companies House,CH,08/12/2022,Contact Centre,CDD Cardiff,Arvato Limited,"264,595 "
Companies House,CH,01/12/2022,Contract Staff,Accounting,MICHAEL PAGE INTERNATIONAL RECRUITMENT,"(3,779.19)"
Companies House,CH,01/12/2022,Contract Staff,Accounting,MICHAEL PAGE INTERNATIONAL RECRUITMENT,"(1,778.44)"
Companies House,CH,01/12/2022,Contract Staff,Accounting,MICHAEL PAGE INTERNATIONAL RECRUITMENT,"(1,778.44)"
Companies House,CH,01/12/2022,Contract Staff,Accounting,MICHAEL PAGE INTERNATIONAL RECRUITMENT,"(1,778.44)"
Companies House,CH,12/12/2022,Contract Staff,Accounting,MICHAEL PAGE INTERNATIONAL RECRUITMENT,"1,778.44 "
Companies House,CH,01/12/2022,Contract Staff,Accounting,MICHAEL PAGE INTERNATIONAL RECRUITMENT,"1,778.44 "
Companies House,CH,01/12/2022,Contract Staff,Accounting,MICHAEL PAGE INTERNATIONAL RECRUITMENT,"1,778.44 "
Companies House,CH,01/12/2022,Contract Staff,Accounting,MICHAEL PAGE INTERNATIONAL RECRUITMENT,"1,778.44 "
Companies House,CH,01/12/2022,Contract Staff,Accounting,MICHAEL PAGE INTERNATIONAL RECRUITMENT,"1,778.44 "
Companies House,CH,19/12/2022,Contract Staff,Accounting,MICHAEL PAGE INTERNATIONAL RECRUITMENT,"2,000.75 "
Companies House,CH,12/12/2022,Contract Staff,Accounting,MICHAEL PAGE INTERNATIONAL RECRUITMENT,"2,223.05 "
Companies House,CH,01/12/2022,Contract Staff,Accounting,MICHAEL PAGE INTERNATIONAL RECRUITMENT,"2,667.66 "
Companies House,CH,01/12/2022,Contract Staff,Accounting,MICHAEL PAGE INTERNATIONAL RECRUITMENT,"3,779.19 "
Companies House,CH,19/12/2022,Contract Staff,Accounting,ALEXANDER MANN SOLUTIONS,"4,095.36 "
Companies House,CH,15/12/2022,Contract Staff,Accounting,ALEXANDER MANN SOLUTIONS,"4,095.36 "
Companies House,CH,19/12/2022,Contract Staff,Architecture & Design,ALEXANDER MANN SOLUTIONS,"2,956.46 "
Companies House,CH,08/12/2022,Contract Staff,Architecture & Design,ALEXANDER MANN SOLUTIONS,"3,695.58 "
Companies House,CH,13/12/2022,Contract Staff,Architecture & Design,ALEXANDER MANN SOLUTIONS,"3,695.58 "
Companies House,CH,19/12/2022,Contract Staff,Architecture & Design,ALEXANDER MANN SOLUTIONS,"3,780.36 "
Companies House,CH,19/12/2022,Contract Staff,Architecture & Design,ALEXANDER MANN SOLUTIONS,"3,780.36 "
Companies House,CH,13/12/2022,Contract Staff,Architecture & Design,ALEXANDER MANN SOLUTIONS,"3,780.36 "
Companies House,CH,08/12/2022,Contract Staff,Architecture & Design,Hays Specialist Recruitment Ltd,"3,984.19 "
Companies House,CH,08/12/2022,Contract Staff,Architecture & Design,Hays Specialist Recruitment Ltd,"4,070.64 "
Companies House,CH,13/12/2022,Contract Staff,Architecture & Design,Hays Specialist Recruitment Ltd,"4,070.64 "
Companies House,CH,01/12/2022,Contract Staff,Architecture & Design,Hays Specialist Recruitment Ltd,"4,070.64 "
Companies House,CH,05/12/2022,Contract Staff,Architecture & Design,Hays Specialist Recruitment Ltd,"4,070.64 "
Companies House,CH,21/12/2022,Contract Staff,Architecture & Design,Hays Specialist Recruitment Ltd,"4,070.64 "
Companies House,CH,13/12/2022,Contract Staff,Architecture & Design,Spring Technology Staffing Services Ltd,"4,264.50 "
Companies House,CH,13/12/2022,Contract Staff,Architecture & Design,Spring Technology Staffing Services Ltd,"4,264.50 "
Companies House,CH,13/12/2022,Contract Staff,Architecture & Design,Spring Technology Staffing Services Ltd,"4,264.50 "
Companies House,CH,13/12/2022,Contract Staff,Architecture & Design,Spring Technology Staffing Services Ltd,"4,264.50 "
Companies House,CH,19/12/2022,Contract Staff,Architecture & Design,Hays Specialist Recruitment Ltd,"4,482.22 "
Companies House,CH,19/12/2022,Contract Staff,Architecture & Design,ALEXANDER MANN SOLUTIONS,"4,601.76 "
Companies House,CH,08/12/2022,Contract Staff,Architecture & Design,ALEXANDER MANN SOLUTIONS,"4,601.76 "
Companies House,CH,15/12/2022,Contract Staff,Architecture & Design,ALEXANDER MANN SOLUTIONS,"4,601.76 "
Companies House,CH,08/12/2022,Contract Staff,Architecture & Design,ALEXANDER MANN SOLUTIONS,"4,601.76 "
Companies House,CH,13/12/2022,Contract Staff,Architecture & Design,ALEXANDER MANN SOLUTIONS,"4,601.76 "
Companies House,CH,19/12/2022,Contract Staff,Architecture & Design,ALEXANDER MANN SOLUTIONS,"4,772.22 "
Companies House,CH,13/12/2022,Contract Staff,Architecture & Design,Hays Specialist Recruitment Ltd,"4,980.24 "
Companies House,CH,19/12/2022,Contract Staff,Architecture & Design,ALEXANDER MANN SOLUTIONS,"5,040.48 "
Companies House,CH,13/12/2022,Contract Staff,Architecture & Design,ALEXANDER MANN SOLUTIONS,"5,726.66 "
Companies House,CH,08/12/2022,Contract Staff,Architecture & Design,ALEXANDER MANN SOLUTIONS,"7,560.72 "
Companies House,CH,12/12/2022,Contract Staff,Architecture & Design,ALEXANDER MANN SOLUTIONS,"7,560.72 "
Companies House,CH,13/12/2022,Contract Staff,Architecture & Design,ALEXANDER MANN SOLUTIONS,"8,180.88 "
Companies House,CH,19/12/2022,Contract Staff,Architecture & Design,ALEXANDER MANN SOLUTIONS,"8,180.88 "
Companies House,CH,13/12/2022,Contract Staff,Architecture & Design,ALEXANDER MANN SOLUTIONS,"9,203.52 "
Companies House,CH,13/12/2022,Contract Staff,Architecture & Design,ALEXANDER MANN SOLUTIONS,"10,080.96 "
Companies House,CH,19/12/2022,Contract Staff,"Data, Analytics & Research",ALEXANDER MANN SOLUTIONS,"1,638.14 "
Companies House,CH,19/12/2022,Contract Staff,"Data, Analytics & Research",Hays Specialist Recruitment Ltd,"3,676.66 "
Companies House,CH,12/12/2022,Contract Staff,"Data, Analytics & Research",ALEXANDER MANN SOLUTIONS,"4,095.36 "
Companies House,CH,19/12/2022,Contract Staff,"Data, Analytics & Research",ALEXANDER MANN SOLUTIONS,"4,095.36 "
Companies House,CH,06/12/2022,Contract Staff,"Data, Analytics & Research",ALEXANDER MANN SOLUTIONS,"4,095.36 "
Companies House,CH,01/12/2022,Contract Staff,"Data, Analytics & Research",Hays Specialist Recruitment Ltd,"4,595.82 "
Companies House,CH,08/12/2022,Contract Staff,"Data, Analytics & Research",Hays Specialist Recruitment Ltd,"4,595.82 "
Companies House,CH,13/12/2022,Contract Staff,"Data, Analytics & Research",Hays Specialist Recruitment Ltd,"4,595.82 "
Companies House,CH,06/12/2022,Contract Staff,"Data, Analytics & Research",ALEXANDER MANN SOLUTIONS,"12,286.08 "
Companies House,CH,13/12/2022,Contract Staff,Directorate,ALEXANDER MANN SOLUTIONS,"5,544.53 "
Companies House,CH,19/12/2022,Contract Staff,Directorate,ALEXANDER MANN SOLUTIONS,"13,861.32 "
Companies House,CH,19/12/2022,Contract Staff,HR Strategy & Policy,ALEXANDER MANN SOLUTIONS,"1,260.12 "
Companies House,CH,13/12/2022,Contract Staff,HR Strategy & Policy,ALEXANDER MANN SOLUTIONS,"3,118.80 "
Companies House,CH,19/12/2022,Contract Staff,HR Strategy & Policy,ALEXANDER MANN SOLUTIONS,"3,118.80 "
Companies House,CH,13/12/2022,Contract Staff,HR Strategy & Policy,ALEXANDER MANN SOLUTIONS,"3,150.30 "
Companies House,CH,19/12/2022,Contract Staff,HR Strategy & Policy,ALEXANDER MANN SOLUTIONS,"4,311.48 "
Companies House,CH,08/12/2022,Contract Staff,HR Strategy & Policy,ALEXANDER MANN SOLUTIONS,"4,311.48 "
Companies House,CH,08/12/2022,Contract Staff,HR Strategy & Policy,ALEXANDER MANN SOLUTIONS,"6,237.60 "
Companies House,CH,02/12/2022,Contract Staff,HR Strategy & Policy,ALEXANDER MANN SOLUTIONS,"8,622.96 "
Companies House,CH,13/12/2022,Contract Staff,Infrastructure,Hays Specialist Recruitment Ltd,"4,070.64 "
Companies House,CH,19/12/2022,Contract Staff,Infrastructure,Hays Specialist Recruitment Ltd,"4,070.64 "
Companies House,CH,01/12/2022,Contract Staff,Infrastructure,Hays Specialist Recruitment Ltd,"4,070.64 "
Companies House,CH,13/12/2022,Contract Staff,Infrastructure,Hays Specialist Recruitment Ltd,"4,070.64 "
Companies House,CH,13/12/2022,Contract Staff,Infrastructure,Spring Technology Staffing Services Ltd,"4,264.50 "
Companies House,CH,08/12/2022,Contract Staff,Infrastructure,Spring Technology Staffing Services Ltd,"4,264.50 "
Companies House,CH,21/12/2022,Contract Staff,Infrastructure,Spring Technology Staffing Services Ltd,"4,264.50 "
Companies House,CH,19/12/2022,Contract Staff,Infrastructure Engineering,ALEXANDER MANN SOLUTIONS,"3,024.29 "
Companies House,CH,12/12/2022,Contract Staff,Infrastructure Engineering,CONCEPT RESOURCING T/A CONCEPT INFORMATION,"3,274.50 "
Companies House,CH,21/12/2022,Contract Staff,Infrastructure Engineering,Spring Technology Staffing Services Ltd,"3,750 "
Companies House,CH,08/12/2022,Contract Staff,Infrastructure Engineering,Spring Technology Staffing Services Ltd,"3,750 "
Companies House,CH,19/12/2022,Contract Staff,Infrastructure Engineering,CONCEPT RESOURCING T/A CONCEPT INFORMATION,"6,549 "
Companies House,CH,12/12/2022,Contract Staff,Infrastructure Engineering,ALEXANDER MANN SOLUTIONS,"7,560.72 "
Companies House,CH,19/12/2022,Contract Staff,Late Filing Penalties,ALEXANDER MANN SOLUTIONS,656.68 
Companies House,CH,13/12/2022,Contract Staff,Late Filing Penalties,ALEXANDER MANN SOLUTIONS,665.56 
Companies House,CH,19/12/2022,Contract Staff,Late Filing Penalties,ALEXANDER MANN SOLUTIONS,665.56 
Companies House,CH,19/12/2022,Contract Staff,Late Filing Penalties,ALEXANDER MANN SOLUTIONS,665.56 
Companies House,CH,08/12/2022,Contract Staff,Late Filing Penalties,ALEXANDER MANN SOLUTIONS,665.56 
Companies House,CH,13/12/2022,Contract Staff,Late Filing Penalties,ALEXANDER MANN SOLUTIONS,665.56 
Companies House,CH,19/12/2022,Contract Staff,Late Filing Penalties,ALEXANDER MANN SOLUTIONS,688.32 
Companies House,CH,15/12/2022,Contract Staff,Late Filing Penalties,ALEXANDER MANN SOLUTIONS,688.32 
Companies House,CH,01/12/2022,Contract Staff,Late Filing Penalties,ALEXANDER MANN SOLUTIONS,693.16 
Companies House,CH,19/12/2022,Contract Staff,Late Filing Penalties,ALEXANDER MANN SOLUTIONS,728.47 
Companies House,CH,19/12/2022,Contract Staff,Late Filing Penalties,ALEXANDER MANN SOLUTIONS,768.62 
Companies House,CH,19/12/2022,Contract Staff,Late Filing Penalties,ALEXANDER MANN SOLUTIONS,803.04 
Companies House,CH,19/12/2022,Contract Staff,Late Filing Penalties,ALEXANDER MANN SOLUTIONS,848.93 
Companies House,CH,15/12/2022,Contract Staff,Late Filing Penalties,ALEXANDER MANN SOLUTIONS,860.40 
Companies House,CH,15/12/2022,Contract Staff,Late Filing Penalties,ALEXANDER MANN SOLUTIONS,860.40 
Companies House,CH,21/12/2022,Contract Staff,Late Filing Penalties,ALEXANDER MANN SOLUTIONS,860.40 
Companies House,CH,19/12/2022,Contract Staff,Late Filing Penalties,ALEXANDER MANN SOLUTIONS,860.40 
Companies House,CH,13/12/2022,Contract Staff,Late Filing Penalties,ALEXANDER MANN SOLUTIONS,860.40 
Companies House,CH,08/12/2022,Contract Staff,Late Filing Penalties,ALEXANDER MANN SOLUTIONS,860.40 
Companies House,CH,08/12/2022,Contract Staff,Late Filing Penalties,ALEXANDER MANN SOLUTIONS,860.40 
Companies House,CH,19/12/2022,Contract Staff,Late Filing Penalties,ALEXANDER MANN SOLUTIONS,860.40 
Companies House,CH,13/12/2022,Contract Staff,Late Filing Penalties,ALEXANDER MANN SOLUTIONS,860.40 
Companies House,CH,21/12/2022,Contract Staff,Late Filing Penalties,ALEXANDER MANN SOLUTIONS,860.40 
Companies House,CH,13/12/2022,Contract Staff,Late Filing Penalties,ALEXANDER MANN SOLUTIONS,860.40 
Companies House,CH,08/12/2022,Contract Staff,Late Filing Penalties,ALEXANDER MANN SOLUTIONS,860.40 
Companies House,CH,19/12/2022,Contract Staff,Late Filing Penalties,ALEXANDER MANN SOLUTIONS,860.40 
Companies House,CH,01/12/2022,Contract Staff,Late Filing Penalties,ALEXANDER MANN SOLUTIONS,888 
Companies House,CH,01/12/2022,Contract Staff,Late Filing Penalties,ALEXANDER MANN SOLUTIONS,"1,127 "
Companies House,CH,01/12/2022,Contract Staff,Late Filing Penalties,ALEXANDER MANN SOLUTIONS,"1,153.63 "
Companies House,CH,01/12/2022,Contract Staff,Late Filing Penalties,ALEXANDER MANN SOLUTIONS,"1,327.64 "
Companies House,CH,01/12/2022,Contract Staff,Late Filing Penalties,ALEXANDER MANN SOLUTIONS,"1,405.32 "
Companies House,CH,21/12/2022,Contract Staff,Late Filing Penalties,ALEXANDER MANN SOLUTIONS,"1,720.80 "
Companies House,CH,08/12/2022,Contract Staff,Late Filing Penalties,ALEXANDER MANN SOLUTIONS,"1,720.80 "
Companies House,CH,12/12/2022,Contract Staff,Late Filing Penalties,INNOVO LAW LTD,"1,992 "
Companies House,CH,19/12/2022,Contract Staff,Portfolio,ALEXANDER MANN SOLUTIONS,"4,410.42 "
Companies House,CH,08/12/2022,Contract Staff,Portfolio,ALEXANDER MANN SOLUTIONS,"4,410.42 "
Companies House,CH,15/12/2022,Contract Staff,Portfolio,ALEXANDER MANN SOLUTIONS,"4,410.42 "
Companies House,CH,02/12/2022,Contract Staff,Procurement,ALEXANDER MANN SOLUTIONS,"(21,170.02)"
Companies House,CH,02/12/2022,Contract Staff,Procurement,ALEXANDER MANN SOLUTIONS,"(21,170.02)"
Companies House,CH,19/12/2022,Contract Staff,Procurement,ALEXANDER MANN SOLUTIONS,796.18 
Companies House,CH,08/12/2022,Contract Staff,Procurement,ALEXANDER MANN SOLUTIONS,"2,388.53 "
Companies House,CH,21/12/2022,Contract Staff,Procurement,Hays Specialist Recruitment Ltd,"3,876.14 "
Companies House,CH,06/12/2022,Contract Staff,Procurement,Hays Specialist Recruitment Ltd,"3,876.14 "
Companies House,CH,08/12/2022,Contract Staff,Procurement,Hays Specialist Recruitment Ltd,"3,876.14 "
Companies House,CH,19/12/2022,Contract Staff,Procurement,Hays Specialist Recruitment Ltd,"3,876.14 "
Companies House,CH,13/12/2022,Contract Staff,Procurement,ALEXANDER MANN SOLUTIONS,"3,980.88 "
Companies House,CH,19/12/2022,Contract Staff,Procurement,ALEXANDER MANN SOLUTIONS,"4,252.86 "
Companies House,CH,08/12/2022,Contract Staff,Procurement,ALEXANDER MANN SOLUTIONS,"4,410.42 "
Companies House,CH,19/12/2022,Contract Staff,Procurement,ALEXANDER MANN SOLUTIONS,"4,410.42 "
Companies House,CH,19/12/2022,Contract Staff,Procurement,ALEXANDER MANN SOLUTIONS,"4,567.92 "
Companies House,CH,08/12/2022,Contract Staff,Procurement,Hays Specialist Recruitment Ltd,"4,845.18 "
Companies House,CH,08/12/2022,Contract Staff,Procurement,Hays Specialist Recruitment Ltd,"4,845.18 "
Companies House,CH,06/12/2022,Contract Staff,Procurement,Hays Specialist Recruitment Ltd,"4,845.18 "
Companies House,CH,08/12/2022,Contract Staff,Procurement,Hays Specialist Recruitment Ltd,"4,845.18 "
Companies House,CH,19/12/2022,Contract Staff,Procurement,Hays Specialist Recruitment Ltd,"4,845.18 "
Companies House,CH,21/12/2022,Contract Staff,Procurement,Hays Specialist Recruitment Ltd,"4,845.18 "
Companies House,CH,19/12/2022,Contract Staff,Procurement,Hays Specialist Recruitment Ltd,"4,845.18 "
Companies House,CH,21/12/2022,Contract Staff,Procurement,Hays Specialist Recruitment Ltd,"4,845.18 "
Companies House,CH,02/12/2022,Contract Staff,Procurement,ALEXANDER MANN SOLUTIONS,"7,938.76 "
Companies House,CH,02/12/2022,Contract Staff,Procurement,ALEXANDER MANN SOLUTIONS,"7,938.76 "
Companies House,CH,02/12/2022,Contract Staff,Procurement,ALEXANDER MANN SOLUTIONS,"8,222.26 "
Companies House,CH,02/12/2022,Contract Staff,Procurement,ALEXANDER MANN SOLUTIONS,"8,820.84 "
Companies House,CH,19/12/2022,Contract Staff,Procurement,ALEXANDER MANN SOLUTIONS,"9,135.84 "
Companies House,CH,02/12/2022,Contract Staff,Procurement,ALEXANDER MANN SOLUTIONS,"13,672.32 "
Companies House,CH,02/12/2022,Contract Staff,Procurement,ALEXANDER MANN SOLUTIONS,"13,672.32 "
Companies House,CH,13/12/2022,Contract Staff,Procurement,ALEXANDER MANN SOLUTIONS,"17,011.44 "
Companies House,CH,13/12/2022,Contract Staff,Product Design,ALEXANDER MANN SOLUTIONS,"3,276.29 "
Companies House,CH,19/12/2022,Contract Staff,Product Design,ALEXANDER MANN SOLUTIONS,"3,685.82 "
Companies House,CH,19/12/2022,Contract Staff,Product Design,ALEXANDER MANN SOLUTIONS,"3,685.82 "
Companies House,CH,19/12/2022,Contract Staff,Product Design,ALEXANDER MANN SOLUTIONS,"4,095.36 "
Companies House,CH,15/12/2022,Contract Staff,Product Design,ALEXANDER MANN SOLUTIONS,"4,095.36 "
Companies House,CH,13/12/2022,Contract Staff,Product Design,ALEXANDER MANN SOLUTIONS,"4,095.36 "
Companies House,CH,12/12/2022,Contract Staff,Product Design,ALEXANDER MANN SOLUTIONS,"4,095.36 "
Companies House,CH,19/12/2022,Contract Staff,Product Design,ALEXANDER MANN SOLUTIONS,"4,095.36 "
Companies House,CH,02/12/2022,Contract Staff,Product Design,ALEXANDER MANN SOLUTIONS,"4,095.36 "
Companies House,CH,02/12/2022,Contract Staff,Product Design,ALEXANDER MANN SOLUTIONS,"4,095.36 "
Companies House,CH,19/12/2022,Contract Staff,Product Design,ALEXANDER MANN SOLUTIONS,"4,252.86 "
Companies House,CH,13/12/2022,Contract Staff,Product Design,ALEXANDER MANN SOLUTIONS,"4,252.86 "
Companies House,CH,08/12/2022,Contract Staff,Product Design,ALEXANDER MANN SOLUTIONS,"4,252.86 "
Companies House,CH,19/12/2022,Contract Staff,Product Design,ALEXANDER MANN SOLUTIONS,"4,311.48 "
Companies House,CH,06/12/2022,Contract Staff,Product Design,ALEXANDER MANN SOLUTIONS,"4,410.42 "
Companies House,CH,06/12/2022,Contract Staff,Product Design,ALEXANDER MANN SOLUTIONS,"4,410.42 "
Companies House,CH,19/12/2022,Contract Staff,Product Design,ALEXANDER MANN SOLUTIONS,"4,410.42 "
Companies House,CH,19/12/2022,Contract Staff,Product Design,ALEXANDER MANN SOLUTIONS,"4,410.42 "
Companies House,CH,13/12/2022,Contract Staff,Product Design,ALEXANDER MANN SOLUTIONS,"4,410.42 "
Companies House,CH,12/12/2022,Contract Staff,Product Design,ALEXANDER MANN SOLUTIONS,"4,410.42 "
Companies House,CH,13/12/2022,Contract Staff,Product Design,ALEXANDER MANN SOLUTIONS,"4,410.42 "
Companies House,CH,19/12/2022,Contract Staff,Product Design,ALEXANDER MANN SOLUTIONS,"4,410.42 "
Companies House,CH,19/12/2022,Contract Staff,Product Design,ALEXANDER MANN SOLUTIONS,"4,410.42 "
Companies House,CH,19/12/2022,Contract Staff,Product Design,ALEXANDER MANN SOLUTIONS,"4,410.42 "
Companies House,CH,02/12/2022,Contract Staff,Product Design,ALEXANDER MANN SOLUTIONS,"4,410.42 "
Companies House,CH,13/12/2022,Contract Staff,Product Design,ALEXANDER MANN SOLUTIONS,"4,486.02 "
Companies House,CH,02/12/2022,Contract Staff,Product Design,ALEXANDER MANN SOLUTIONS,"4,486.02 "
Companies House,CH,19/12/2022,Contract Staff,Product Design,ALEXANDER MANN SOLUTIONS,"4,486.02 "
Companies House,CH,08/12/2022,Contract Staff,Product Design,ALEXANDER MANN SOLUTIONS,"4,504.92 "
Companies House,CH,13/12/2022,Contract Staff,Product Design,ALEXANDER MANN SOLUTIONS,"4,504.92 "
Companies House,CH,19/12/2022,Contract Staff,Product Design,ALEXANDER MANN SOLUTIONS,"4,504.92 "
Companies House,CH,12/12/2022,Contract Staff,Product Design,ALEXANDER MANN SOLUTIONS,"7,760.66 "
Companies House,CH,13/12/2022,Contract Staff,Product Design,ALEXANDER MANN SOLUTIONS,"8,820.84 "
Companies House,CH,13/12/2022,Contract Staff,Product Design,ALEXANDER MANN SOLUTIONS,"8,820.84 "
Companies House,CH,19/12/2022,Contract Staff,Product Design,ALEXANDER MANN SOLUTIONS,"12,928.74 "
Companies House,CH,21/12/2022,Contract Staff,Projects,Hays Specialist Recruitment Ltd,944.24 
Companies House,CH,02/12/2022,Contract Staff,Projects,Hays Specialist Recruitment Ltd,"1,573.74 "
Companies House,CH,08/12/2022,Contract Staff,Projects,Hays Specialist Recruitment Ltd,"1,888.49 "
Companies House,CH,06/12/2022,Contract Staff,Projects,ALEXANDER MANN SOLUTIONS,"2,079.18 "
Companies House,CH,13/12/2022,Contract Staff,Projects,ALEXANDER MANN SOLUTIONS,"2,771.70 "
Companies House,CH,13/12/2022,Contract Staff,Projects,ALEXANDER MANN SOLUTIONS,"2,772.24 "
Companies House,CH,21/12/2022,Contract Staff,Projects,Hays Specialist Recruitment Ltd,"2,832.73 "
Companies House,CH,13/12/2022,Contract Staff,Projects,ALEXANDER MANN SOLUTIONS,"3,465.30 "
Companies House,CH,08/12/2022,Contract Staff,Projects,ALEXANDER MANN SOLUTIONS,"3,465.30 "
Companies House,CH,12/12/2022,Contract Staff,Projects,ALEXANDER MANN SOLUTIONS,"3,881.36 "
Companies House,CH,13/12/2022,Contract Staff,Projects,ALEXANDER MANN SOLUTIONS,"4,049.16 "
Companies House,CH,06/12/2022,Contract Staff,Projects,ALEXANDER MANN SOLUTIONS,"4,049.16 "
Companies House,CH,19/12/2022,Contract Staff,Projects,ALEXANDER MANN SOLUTIONS,"4,312.62 "
Companies House,CH,19/12/2022,Contract Staff,Projects,ALEXANDER MANN SOLUTIONS,"4,725.42 "
Companies House,CH,08/12/2022,Contract Staff,Projects,ALEXANDER MANN SOLUTIONS,"4,725.42 "
Companies House,CH,13/12/2022,Contract Staff,Projects,ALEXANDER MANN SOLUTIONS,"4,725.42 "
Companies House,CH,08/12/2022,Contract Staff,Projects,ALEXANDER MANN SOLUTIONS,"8,625.24 "
Companies House,CH,05/12/2022,Contract Staff,Strategic Finance,ALEXANDER MANN SOLUTIONS,"6,584.08 "
Companies House,CH,19/12/2022,Contract Staff,"Strategy, Policy & Communications",ALEXANDER MANN SOLUTIONS,756.07 
Companies House,CH,15/12/2022,Contract Staff,"Strategy, Policy & Communications",Spring Technology Staffing Services Ltd,"3,805.92 "
Companies House,CH,08/12/2022,Contract Staff,"Strategy, Policy & Communications",Spring Technology Staffing Services Ltd,"3,845.57 "
Companies House,CH,15/12/2022,Contract Staff,WebOps & DevOps,Spring Technology Staffing Services Ltd,"3,411.60 "
Companies House,CH,02/12/2022,Contract Staff,WebOps & DevOps,Spring Technology Staffing Services Ltd,"4,264.50 "
Companies House,CH,02/12/2022,Contract Staff,WebOps & DevOps,Spring Technology Staffing Services Ltd,"4,264.50 "
Companies House,CH,13/12/2022,Contract Staff,WebOps & DevOps,Spring Technology Staffing Services Ltd,"4,264.50 "
Companies House,CH,02/12/2022,Contract Staff,WebOps & DevOps,Spring Technology Staffing Services Ltd,"4,264.50 "
Companies House,CH,13/12/2022,Contract Staff,WebOps & DevOps,ALEXANDER MANN SOLUTIONS,"7,815.72 "
Companies House,CH,21/12/2022,Credit Card Charges,Accounting,WORLDPAY LIMITED,"2,798.43 "
Companies House,CH,21/12/2022,Credit Card Charges,Accounting,WORLDPAY LIMITED,"12,963.45 "
Companies House,CH,21/12/2022,Credit Card Charges,Late Filing Penalties Accounting,WORLDPAY LIMITED,567.31 
Companies House,CH,09/12/2022,Cycle to work salary sacrifice,Accounting,CYCLESCHEME LIMITED,(950)
Companies House,CH,15/12/2022,Electricity,Building Services,EDF ENERGY CUSTOMERS PLC,"50,647.99 "
Companies House,CH,15/12/2022,Electricity,Regional Estates - Edinburgh,EDF ENERGY CUSTOMERS PLC,(778.02)
Companies House,CH,15/12/2022,Electricity,Regional Estates - Edinburgh,EDF ENERGY CUSTOMERS PLC,(777.14)
Companies House,CH,15/12/2022,Electricity,Regional Estates - Edinburgh,EDF ENERGY CUSTOMERS PLC,(765.55)
Companies House,CH,15/12/2022,Electricity,Regional Estates - Edinburgh,EDF ENERGY CUSTOMERS PLC,(759.73)
Companies House,CH,12/12/2022,External managed services,Portfolio,Ensono Digital Limited,"27,900 "
Companies House,CH,19/12/2022,External Managed Services,Portfolio,KAINOS SOFTWARE LTD,"5,945 "
Companies House,CH,19/12/2022,External Managed Services,Portfolio,KAINOS SOFTWARE LTD,"11,320 "
Companies House,CH,19/12/2022,External Managed Services,Portfolio,KAINOS SOFTWARE LTD,"180,010.75 "
Companies House,CH,19/12/2022,External Managed Services,Portfolio,KAINOS SOFTWARE LTD,"262,315.25 "
Companies House,CH,15/12/2022,Extl Scrum Resource Costs,Architecture & Design,FDM GROUP,"51,240 "
Companies House,CH,15/12/2022,Extl Scrum Resource Costs,Architecture & Design,FDM GROUP,"67,800 "
Companies House,CH,12/12/2022,Extl Scrum Resource Costs,Portfolio,Ensono Digital Limited,"59,400 "
Companies House,CH,21/12/2022,Gas,Building Services,TotalEnergies Gas & Power,"(5,760.89)"
Companies House,CH,21/12/2022,Gas,Building Services,TotalEnergies Gas & Power,"1,134.53 "
Companies House,CH,21/12/2022,Gas,Building Services,TotalEnergies Gas & Power,"1,288.31 "
Companies House,CH,21/12/2022,Gas,Building Services,TotalEnergies Gas & Power,"1,437.94 "
Companies House,CH,21/12/2022,Gas,Building Services,TotalEnergies Gas & Power,"1,494.99 "
Companies House,CH,21/12/2022,Gas,Building Services,TotalEnergies Gas & Power,"1,717.75 "
Companies House,CH,21/12/2022,Gas,Building Services,TotalEnergies Gas & Power,"2,763.26 "
Companies House,CH,08/12/2022,Gazette Notices,CDD Cardiff,Stationery Office (Williams Lea),"9,217.40 "
Companies House,CH,08/12/2022,Gazette Notices,Northern Ireland,Stationery Office (Williams Lea),"1,180.80 "
Companies House,CH,15/12/2022,H & S Equipment,Building Services,Sankey Health (part of PAM Group),594 
Companies House,CH,15/12/2022,H & S Equipment,Building Services,Sankey Health (part of PAM Group),683 
Companies House,CH,15/12/2022,H & S Equipment,Building Services,Sankey Health (part of PAM Group),866 
Companies House,CH,01/12/2022,H & S Equipment,Building Services,Evac Chair International Limited,875 
Companies House,CH,15/12/2022,H & S Equipment,Building Services,Sankey Health (part of PAM Group),891 
Companies House,CH,15/12/2022,H & S Equipment,Building Services,Sankey Health (part of PAM Group),"1,285 "
Companies House,CH,15/12/2022,H & S Equipment,Building Services,Sankey Health (part of PAM Group),"2,079 "
Companies House,CH,15/12/2022,Hardware & Software Maintenance,CDD Cardiff,THE SOFTWARE BUREAU LTD,"4,845 "
Companies House,CH,01/12/2022,Hardware & Software Maintenance,HR Strategy & Policy,Towers Watson UK Ltd,"2,432 "
Companies House,CH,06/12/2022,Hardware & Software Maintenance,Infrastructure,Microsoft Ireland Operations Ltd,870.50 
Companies House,CH,06/12/2022,Independent adjudication,Late Filing Penalties,Independent adjudication,"2,320 "
Companies House,CH,19/12/2022,Legal Disbursements,Late Filing Penalties Accounting,INDESSER,"55,166.28 "
Companies House,CH,19/12/2022,Legal Disbursements,Late Filing Penalties Accounting,INDESSER,"580,305.80 "
Companies House,CH,19/12/2022,Legal Disbursements,Late Filing Penalties Edinburgh,INDESSER,"2,352.77 "
Companies House,CH,08/12/2022,Legal Disbursements,Late Filing Penalties Edinburgh,ALSTON LAW LTD,580.50 
Companies House,CH,19/12/2022,Legal Disbursements,Late Filing Penalties Edinburgh,INDESSER,"103,091.20 "
Companies House,CH,19/12/2022,Legal Disbursements,Late Filing Penalties Northern Ireland,INDESSER,"1,220.10 "
Companies House,CH,19/12/2022,Legal Disbursements,Late Filing Penalties Northern Ireland,INDESSER,"28,834 "
Companies House,CH,13/12/2022,Maintenance,Building Services,GOVERNMENT PROPERTY AGENCY (Montagu Evans),"4,378.49 "
Companies House,CH,13/12/2022,Maintenance,Building Services,GOVERNMENT PROPERTY AGENCY (Montagu Evans),"4,434.68 "
Companies House,CH,01/12/2022,Maintenance,Building Services,GOVERNMENT PROPERTY AGENCY (Montagu Evans),"11,828.42 "
Companies House,CH,01/12/2022,Maintenance,Building Services,GOVERNMENT PROPERTY AGENCY (Montagu Evans),"24,461.38 "
Companies House,CH,21/12/2022,Micrographics,Get Company Information,Restore Digital Limited,"29,409.70 "
Companies House,CH,08/12/2022,Micrographics,Get Company Information,Restore Digital Limited,"37,319.70 "
Companies House,CH,13/12/2022,Occupational Health Contract,HR Strategy & Policy,Health Partners Duradiamond Ltd,"2,486 "
Companies House,CH,08/12/2022,Occupational Health Contract,HR Strategy & Policy,Health Partners Duradiamond Ltd,"2,623.25 "
Companies House,CH,08/12/2022,Occupational Health Contract,HR Strategy & Policy,Health Partners Duradiamond Ltd,"2,973.54 "
Companies House,CH,08/12/2022,Occupational Health Contract,HR Strategy & Policy,Health Partners Duradiamond Ltd,"6,400.25 "
Companies House,CH,13/12/2022,Occupational Health Contract,HR Strategy & Policy,Health Partners Duradiamond Ltd,"11,678.10 "
Companies House,CH,19/12/2022,Office Furniture,Estates Projects,D&G OFFICE INTERIORS LTD,627.50 
Companies House,CH,05/12/2022,Office Furniture,Estates Projects,D&G OFFICE INTERIORS LTD,"1,254.50 "
Companies House,CH,01/12/2022,Office Machinery Maintenance,CDD Cardiff,QUADIENT UK LIMITED,677.42 
Companies House,CH,06/12/2022,Postage,CDD Cardiff,APOLLO DISTRIBUTION SOLUTIONS LTD,"4,162.50 "
Companies House,CH,19/12/2022,Postage,CDD Cardiff,DX Network Services Limited,"1,027.59 "
Companies House,CH,05/12/2022,Postage,CDD Cardiff,Royal Mail,"1,603.81 "
Companies House,CH,19/12/2022,Postage,CDD Cardiff,Royal Mail,"5,138.28 "
Companies House,CH,01/12/2022,Postage,Edinburgh,DX Network Services Limited,900 
Companies House,CH,08/12/2022,Print and Mailing Contract,CDD Cardiff,APS GROUP,"1,899.04 "
Companies House,CH,05/12/2022,Print and Mailing Contract,CDD Cardiff,APS GROUP,"122,888.97 "
Companies House,CH,08/12/2022,Print and Mailing Contract,Late Filing Penalties Accounting,A McLay & Company Ltd,"4,676.33 "
Companies House,CH,08/12/2022,Print and Mailing Contract,Late Filing Penalties Accounting,A McLay & Company Ltd,"5,599.20 "
Companies House,CH,08/12/2022,Print and Mailing Contract,Late Filing Penalties Accounting,A McLay & Company Ltd,"7,381.81 "
Companies House,CH,08/12/2022,Print and Mailing Contract,Late Filing Penalties Accounting,A McLay & Company Ltd,"11,399.34 "
Companies House,CH,08/12/2022,Professional Fees,Accounting,ARKK CONSULTING LTD,500 
Companies House,CH,01/12/2022,Professional Fees,Accounting,MyCSP Limited,551.34 
Companies House,CH,15/12/2022,Professional Fees,Accounting,LEGAL AND GENERAL ASSURANCE SOCIETY LTD,578.43 
Companies House,CH,01/12/2022,Professional Fees,Organisation Dev & Design,Investors in People UK,"5,200 "
Companies House,CH,12/12/2022,Professional Fees,WebOps & DevOps,CoreFiling,"35,000 "
Companies House,CH,01/12/2022,Professional Fees,WebOps & DevOps,FINANCIAL REPORTING COUNCIL LTD,"66,457.20 "
Companies House,CH,15/12/2022,RATES,Building Services,City and County of Cardiff,"63,308.33 "
Companies House,CH,15/12/2022,RATES,London Information Centre,CITY OF WESTMINSTER,"1,933.62 "
Companies House,CH,15/12/2022,RATES,London Information Centre,CITY OF WESTMINSTER,"2,944 "
Companies House,CH,01/12/2022,Rent,London Information Centre,Jon Christopher Chartered Surveyors,"31,837.50 "
Companies House,CH,01/12/2022,Restaurant Services,Building Services,ARAMARK,"2,361.49 "
Companies House,CH,08/12/2022,Rolling Maintenance & minor contracts,Building Services,Computerised & Digital Security Systems,"1,793 "
Companies House,CH,13/12/2022,Rolling Maintenance & minor contracts,Estates Projects,TERSUS CONSULTANCY LIMITED,"5,000 "
Companies House,CH,12/12/2022,Rolling Maintenance & minor contracts,Estates Projects,Mann Williams Cardiff LTD,"5,980 "
Companies House,CH,01/12/2022,Service charges,London Information Centre,Jon Christopher Chartered Surveyors,"9,889.85 "
Companies House,CH,13/12/2022,Software as a service,Cyber Security,E2E ASSURE,"12,965.90 "
Companies House,CH,06/12/2022,Software as a service,Cyber Security,E2E ASSURE,"19,935 "
Companies House,CH,15/12/2022,Software as a service,Infrastructure,SMART SURVEY LTD,"12,000 "
Companies House,CH,06/12/2022,Software as a service,Infrastructure,Computacenter (GCAT),"297,993.60 "
Companies House,CH,15/12/2022,Software Licence,"Data, Analytics & Research",SMART SURVEY LTD,"4,500 "
Companies House,CH,22/12/2022,Software Licence,HR Strategy & Policy,Edenred Rewards,"3,496.45 "
Companies House,CH,02/12/2022,Software Licence,Procurement,Glemnet Ltd,"10,422.45 "
Companies House,CH,05/12/2022,Stationery,Procurement,Banner,"2,993.33 "
Companies House,CH,19/12/2022,Telecom Rental,Infrastructure,AVOIRA LTD,"3,286.94 "
Companies House,CH,12/12/2022,Telephone Costs,Infrastructure,TELEFONICA UK LTD,"3,205.68 "
Companies House,CH,01/12/2022,Training Central,Training,BITESIZE COMPUTER TRAINING LTD,750 
Companies House,CH,21/12/2022,Training Central,Training,i-act (for positive mental health and we,899 
Companies House,CH,01/12/2022,Training Central,Training,University of South Wales,"1,500 "
Companies House,CH,06/12/2022,Training Central,Training,University of South Wales,"1,500 "
Companies House,CH,13/12/2022,Training Central,Training,ERNST & YOUNG LLP,"7,600 "
Companies House,CH,08/12/2022,Training Directorate,Training,RSS (SERVICES) LTD,"1,889.25 "
Companies House,CH,15/12/2022,Training Directorate,Training,GOVNET COMMUNICATIONS,"5,000 "
Companies House,CH,19/12/2022,Training External,Northern Ireland,Inquisitio Consulting Ltd,"1,600 "
Companies House,CH,21/12/2022,Training External,Portfolio,CSL-KPMG LLP,"8,081 "
Companies House,CH,13/12/2022,Training External,Training,CSL-KPMG LLP,"1,692 "
Companies House,CH,01/12/2022,Training Policy/Communications,Training,UNIVERSITY OF NOTTINGHAM,"3,812.80 "
Companies House,CH,06/12/2022,Travel,Organisational Overheads,CLARITY TRAVEL LIMITED,"5,238.17 "
Companies House,CH,15/12/2022,Water,Edinburgh,BUSINESS STREAM LIMITED,"5,067.71 "
Companies House,CH,02/12/2022,Wood Pellets,Building Services,AMP BIOMASS FUELS LTD,"9,973.68 "
Companies House,CH,15/12/2022,Wood Pellets,Building Services,AMP BIOMASS FUELS LTD,"10,324.69 "